Workbook

Sheet 1,2,3,4,5,6
K1: ЗАТВЕРДЖЕНО
K2: Наказ Міністерства фінансів України
K3: 26.08.2014 N 836
H6: ЗВІТ
A7: про виконання паспорта бюджетної програми місцевого бюджету станом на | K7: 01 | L7: січня | M7: 2019 року
A8: 1. | B8: 0200000 | D8: Виконавчий комітет Житомирської міської ради Житомирської області
B9: (КПКВК МБ) | D9: (найменування головного розпорядника)
A10: 2. | B10: 0210000 | D10: Виконавчий комітет Житомирської міської ради Житомирської області
B11: (КПКВК МБ) | D11: (найменування відповідального виконавця)
A12: 3. | B12: 0216080 | E12: Реалізація державних та місцевих житлових програм
B13: (КПКВК МБ) | C13: (КФКВК) | E13: (найменування бюджетної програми)
A14: 4. | B14: Видатки та надання кредитів за бюджетною програмою за звітний період
L15: (тис. грн.)
A16: Затверджено паспортом бюджетної програми | F16: Касові видатки (надані кредити) | J16: Відхилення
A17: загальний фонд | C17: спеціальний фонд | E17: разом | F17: загальний фонд | H17: спеціальний фонд | I17: разом | J17: загальний фонд | K17: спеціальний фонд | M17: разом
A18: 1 | C18: 2 | E18: 3 | F18: 4 | H18: 5 | I18: 6 | J18: 7 | K18: 8 | M18: 9
A19: 104.7 | C19: 19.5 | E19: =SUM(A19:D19) -> 124.2 | F19: 104.7 | H19: 19.5 | I19: =SUM(F19:H19) -> 124.2 | J19: =A19-F19 -> 0 | K19: =H19-C19 -> 0 | M19: =SUM(J19:L19) -> 0
A20: 2.4 | C20: 2159.9 | E20: =SUM(A20:D20) -> 2162.3 | F20: 2.4 | H20: 2139.1 | I20: =SUM(F20:H20) -> 2141.5 | J20: =A20-F20 -> 0 | K20: =H20-C20 -> -20.8 | M20: =SUM(J20:L20) -> -20.8
A21: =SUM(A19:B20) -> 107.1 | C21: =SUM(C19:D20) -> 2179.4 | E21: =SUM(E19:E20) -> 2286.5 | F21: =SUM(F19:G20) -> 107.1 | H21: =SUM(H19:H20) -> 2158.6 | I21: =SUM(F21:H21) -> 2265.7 | J21: =A21-F21 -> 0 | K21: =H21-C21 -> -20.8 | M21: =SUM(J21:L21) -> -20.8
A22: 5. | B22: Обсяги фінансування бюджетної програми за звітний період у розрізі підпрограм та завдань
M23: (тис. грн.)
A24: N з/п | B24: КПКВК | C24: КФКВК | D24: Підпрограма/зав-дання бюджетної програми | E24: Затверджено паспортом бюджетної програми на звітний період | H24: Касові видатки (надані кредити) за звітний період | K24: Відхилення
E25: загальний фонд | F25: спеціальний фонд | G25: разом | H25: загальний фонд | I25: спеціальний фонд | J25: разом | K25: загальний фонд | L25: спеціальний фонд | M25: разом
A26: 1 | B26: 216084 | C26: 1060 | D26: Підпрограма 1 . Витрати, пов'язані з наданням та обслуговуванням пільгових довгострокових кредитів, наданих громадянам на будівництво /реконструкцію/ придбання житла | E26: 104.7 | F26: 19.5 | G26: =SUM(E26:F26) -> 124.2 | H26: 104.7 | I26: 19.5 | J26: =SUM(H26:I26) -> 124.2 | K26: =E26-H26 -> 0 | L26: =SUM(I26-F26) -> 0 | M26: =K26+L26 -> 0
B27: 216084 | C27: 1060 | D27: Завдання 1 . Витрати, пов'язані з наданням та обслуговуванням пільгових довгострокових кредитів, наданих громадянам на будівництво /реконструкцію/ придбання житла | E27: 104.7 | F27: 19.5 | G27: =SUM(E27:F27) -> 124.2 | H27: 104.7 | I27: 19.5 | J27: =SUM(H27:I27) -> 124.2 | K27: =E27-H27 -> 0 | L27: =SUM(I27-F27) -> 0 | M27: =K27+L27 -> 0
A28: 2 | B28: 216083 | C28: 1060 | D28: Підпрограма 2. Проектні, будівельно-ремонтні роботи, придбання житла та приміщень для розвитку сімейних та інших форм виховання, наближених до сімейних, та забезпечення житлом дітей-сиріт, осіб з їх числа | E28: 2.4 | F28: 2159.9 | G28: =SUM(E28:F28) -> 2162.3 | H28: 2.4 | I28: 2139.1 | J28: =SUM(H28:I28) -> 2141.5 | K28: 0 | L28: =SUM(I28-F28) -> -20.8 | M28: =K28+L28 -> -20.8
B29: 0216083 | C29: 1060 | D29: Завдання1. Забезпечити житлом, соціальним житлом дітей-сиріт та осіб з їх числа | E29: 2.4 | F29: 2159.9 | G29: =SUM(E29:F29) -> 2162.3 | H29: 2.4 | I29: 2139.1 | J29: =SUM(H29:I29) -> 2141.5 | K29: =E29-H29 -> 0 | L29: =SUM(I29-F29) -> -20.8 | M29: =K29+L29 -> -20.8
D30: Усього | E30: =SUM(E26+E28) -> 107.1 | F30: 2179.4 | G30: 2286.5 | H30: 107.1 | I30: 2158.6 | J30: 2265.7 | K30: =SUM(K27:K29) -> 0 | L30: =SUM(L26+L28) -> -20.8 | M30: =SUM(K30:L30) -> -20.8
A32: 6. | B32: Видатки на реалізацію регіональних цільових програм, які виконуються в межах бюджетної програми, за звітний період
M33: (тис. грн.)
A34: Назва регіональної цільової програми та підпрограми | E34: Затверджено паспортом бюджетної програми на звітний період | H34: Касові видатки ( надані кредити) за звітний період | K34: Відхилення
E35: загальний фонд | F35: спеціальний фонд | G35: разом | H35: загальний фонд | I35: спеціальний фонд | J35: разом | K35: загальний фонд | L35: спеціальний фонд | M35: разом
A36: 1 | E36: 2 | F36: 3 | G36: 4 | H36: 5 | I36: 6 | J36: 7 | K36: 8 | L36: 9 | M36: 10
A37: Регіональна цільова програма 1
A38: Міська програма забезпечення молодих сімей та одиноких громадян житлом в м.Житомирі на 2018-2022 роки | E38: 104.7 | F38: 19.5 | G38: =SUM(E38:F38) -> 124.2 | H38: 104.7 | I38: 19.5 | J38: =SUM(H38:I38) -> 124.2 | K38: =E38-H38 -> 0 | L38: =I38-F38 -> 0 | M38: =K38+L38 -> 0
A39: Комплексна міська Програма соціального захисту населення на 2016-2020 роки | E39: 2.4 | F39: 2159.9 | G39: =SUM(E39:F39) -> 2162.3 | H39: 2.4 | I39: 2139.1 | J39: =SUM(H39:I39) -> 2141.5 | K39: 0 | L39: =I39-F39 -> -20.8 | M39: =K39+L39 -> -20.8
A40: Усього | E40: =SUM(E38:E39) -> 107.1 | F40: =SUM(F38:F39) -> 2179.4 | G40: 2286.5 | H40: 107.1 | I40: 2158.6 | J40: 2265.7 | K40: 0 | L40: -20.8 | M40: -20.8
A42: 7. Результативні показники бюджетної програми, та аналіз їх виконання за звітний період
A45: N з/п | B45: КПКВК | C45: Показники | E45: Одиниця виміру | F45: Джерело інформації | H45: Затверджено паспортом бюджетної програми на звітний період | J45: Виконано за звітний період ( касові видатки/надані кредити) | L45: Відхилення
A47: 1 | B47: 2 | C47: 3 | E47: 4 | F47: 5 | H47: 6 | J47: 7 | L47: 8
C48: Підпрограма 1. Витрати, пов'язані з наданням та обслуговуванням пільгових довгострокових кредитів, наданих громадянам на будівництво /реконструкцію/ придбання житла
B49: 0216084 | C49: Завдання 1. Витрати, пов'язані з наданням та обслуговуванням пільгових довгострокових кредитів, наданих громадянам на будівництво /реконструкцію/ придбання житла
C50: затрат
C51: кількість сімей, які перебувають на обліку | E51: од. | F51: реєстр | H51: 128 | J51: 131 | L51: =J51-H51 -> 3
A52: Збільшилась кількість звернень громадян
B53: 0216084 | C53: обсяг витрат, пов'язані з наданням та обслуговуванням пільгових довгострокових кредитів, наданих громадянам на будівництво (реконструкцію) та придбання житла | E53: тис.грн. | F53: рішення міської ради від 18.12.2017 №881 зі змінами | H53: 124.2 | J53: 124.2 | L53: =J53-H53 -> 0
C55: продукту
B56: 0216084 | C56: кількість укладених договорів, за якими планується здійснювати обслуговування кредитів | E56: од. | F56: розрахункові показники | H56: 4 | J56: 4 | L56: =J56-H56 -> 0
B57: 0216084 | C57: площа, яку планується надати | E57: м.кв. | F57: розрахункові показники | L57: 0
C59: ефективності
B60: 0216084 | C60: середні витрати на обслуговування одного кредитного договору | E60: тис.грн. | F60: розрахункові показники | H60: 31.05 | J60: 31.05 | L60: =J60-H60 -> 0
C61: якості
B62: 0216084 | C62: динаміка зростання витрат на обслуговування одного кредитного договору порівняно з попереднім роком | E62: % | F62: розрахунково | H62: 72.9 | J62: 33.26 | L62: =J62-H62 -> -39.64
A63: Фактичний результативний показник менший у порівнянні з затвердженим у зв'язку з тим, що кредити надані позичальникам були частково змішані з коштами обласного бюджету, а також слід врахувати , що двома позичальнтками внесено збільшені обсяги внесків
C64: Підпрограма 2. Проектні, будівельно-ремонтні роботи, придбання житла та приміщень для розвитку сімейних та інших форм виховання, наближених до сімейних, та забезпечення житлом дітей-сиріт, осіб з їх числа
C65: завдання 1. Забезпечити житлом, соціальним житлом дітей-сиріт та осіб з їх числа
A66: 1 | C66: затрат
B67: 0216083 | C67: видатки на виконання програми за рахунок субвенції | E67: тис.грн. | F67: рішення сесії від 18.12.2017№881 "Про міський бюджет на 2018 рік" зі змінами | H67: 1920.1 | J67: 1911.12 | L67: =J67-H67 -> -8.98
B68: 0216083 | C68: видатки на виконання програми за рахунок місцевого бюджету | E68: тис.грн. | F68: рішення сесії від 18.12.2017№881 "Про міський бюджет на 2018 рік" зі змінами | H68: 242.2 | J68: 230.4 | L68: =J68-H68 -> -11.8
B70: 0216083 | C70: обсяг витрат, пов'язаних з наданням та обслуговуванням пільгових довгострокових кредитів, наданих громадянам на будівництво (реконструкцію) та придбання житла | E70: од. | F70: рішення міської ради від 21.12.2016 №42 зі змінами | H70: 71.8 | J70: 69.8 | L70: =J70-H70 -> -2
A71: 2 | C71: продукту
B72: 0216083 | C72: кількість дітей-сиріт, осіб з їх числа, які перебувають на обліку громадян які потребують поліпшення житлових умов або на соціальному квартирному обліку | E72: од. | F72: рішення виконавчого комітету | H72: 7 | J72: 7 | L72: =J72-H72 -> 0
B73: 0216083 | C73: Житло, соціальне житло для дітей-сиріт, осіб із числа, які перебувають на обліку громадян, які потребують поліпшення житлових умов або на соціальному квартирному обліку | E73: од. | F73: згідно розподілу субвенції | H73: 4 | J73: 4 | L73: =J73-H73 -> 0
A75: 3 | C75: ефективності
B76: 0216083 | C76: кількість дітей-сиріт, осіб з числа дітей-сиріт які будуть забезпечені житлом та соціальним житлом | E76: осіб | F76: згідно кількості придбаних житлових об'єктів | H76: 4 | J76: 4 | L76: =J76-H76 -> 0
C77: Фактичний результативний показник менший у порівнянні з затвердженим у зв'язку з тим , що кошти із спецфонду використані в межах надходжень
C78: якості
C79: показник
C80: …
C81: Пояснення щодо причин розбіжностей між затвердженими та досягнутими результативними показниками
A82: 4 | C82: якості
B83: 0216083 | C83: питома вага дітей-сиріт, осіб з числа дітей-сиріт, які будуть забезпечені житлом, соціальним житлом | E83: % | F83: розрахунково | H83: 57.1 | J83: 57.1 | L83: =J83-H83 -> 0
A86: 8. Джерела фінансування інвестиційних проектів у розрізі підпрограм 3
O88: (тис. грн.)
A89: Код | B89: Найменування джерел надходжень | C89: КПКВК | D89: Касові видатки станом на 01 січня звітного періоду | G89: План видатків звітного періоду | J89: Касові видатки за звітний період | M89: Прогноз видатків до кінця реалізації інвестиційного проекту
D90: загальний фонд | E90: спеціальний фонд | F90: разом | G90: загальний фонд | H90: спеціальний фонд | I90: разом | J90: загальний фонд | K90: спеціальний фонд | L90: разом | M90: загальний фонд | N90: спеціальний фонд | O90: разом
A91: 1 | B91: 2 | C91: 3. | D91: 4 | E91: 5 | F91: 6 | G91: 7 | H91: 8 | I91: 9 | J91: 10 | K91: 11 | L91: 12 | M91: 13 | N91: 14 | O91: 15
B92: Підпрограма 1
B93: Інвестиційний проект 1
B94: Надходження із бюджету
B95: Інші джерела фінансування (за видами) | D95: Х | G95: Х | J95: Х | M95: Х
B96: Пояснення щодо розбіжностей між фактичними надходженнями і тими, що затверджені паспортами бюджетної програми
B97: Інвестиційний проект 2
B98: Усього
A100: 1 Код функціональної класифікації видатків та кредитування бюджету вказується лише у випадку, коли бюджетна програма не поділяється на підпрограми.
A101: 2 Зазначаються усі підпрограми та завдання, затверджені паспортом бюджетної програми.
A102: 3 Пункт 8 заповнюється тільки для затверджених у місцевому бюджеті видатків/ надання кредитів на реалізацію інвестиційних проектів ( програм).
A105: Керівник установи головного розпорядника
A106: бюджетних коштів | K106: Пашко О.М.
H107: (підпис) | K107: (прізвище та ініціали)
A109: Головний бухгалтер установи головного розпорядника | K109: Борецька Н.В.
A110: бюджетних коштів | H110: (підпис) | K110: (прізвище та ініціали)
